[Event "Early-Titled-Tuesday-Blitz-September-05-2023"]
[Site "Chess.com"]
[Date "2023.09.05"]
[Round "1"]
[White "lacafi"]
[Black "JaloliddinIlkhomi"]
[Result "0-1"]
[WhiteElo "2200"]
[BlackElo "2584"]
[TimeControl "180+1"]
[EndTime "8:05:39 PDT"]
[Termination "JaloliddinIlkhomi won by resignation"]

1. d4 {[%clk 0:03:00.1]} 1... Nf6 {[%clk 0:02:58.7]} 2. Nf3 {[%clk 0:03:00.5]}
2... e6 {[%clk 0:02:58.9]} 3. e3 {[%clk 0:03:00.9]} 3... b6 {[%clk 0:02:59.4]}
4. Bd3 {[%clk 0:03:01.6]} 4... Bb7 {[%clk 0:03:00]} 5. Nbd2 {[%clk 0:03:02.3]}
5... d5 {[%clk 0:03:00.3]} 6. Qe2 {[%clk 0:03:02.8]} 6... Nbd7 {[%clk
0:03:00.9]} 7. e4 {[%clk 0:03:03.3]} 7... dxe4 {[%clk 0:03:01.1]} 8. Nxe4 {[%clk
0:03:04.1]} 8... Nxe4 {[%clk 0:03:01.9]} 9. Bxe4 {[%clk 0:03:04.8]} 9... Bxe4
{[%clk 0:03:02.3]} 10. Qxe4 {[%clk 0:03:05.5]} 10... Bd6 {[%clk 0:02:59.9]} 11.
O-O {[%clk 0:03:04.3]} 11... h6 {[%clk 0:02:56.3]} 12. Ne5 {[%clk 0:02:58.5]}
12... Bxe5 {[%clk 0:02:49.3]} 13. dxe5 {[%clk 0:02:58.6]} 13... O-O {[%clk
0:02:49.8]} 14. c4 {[%clk 0:02:51.3]} 14... Qe7 {[%clk 0:02:49.4]} 15. b3 {[%clk
0:02:50]} 15... Nc5 {[%clk 0:02:49.1]} 16. Qe2 {[%clk 0:02:49.6]} 16... Rad8
{[%clk 0:02:47.8]} 17. Ba3 {[%clk 0:02:49.2]} 17... Rd7 {[%clk 0:02:46.7]} 18.
Rad1 {[%clk 0:02:47.9]} 18... Rfd8 {[%clk 0:02:46.5]} 19. Rxd7 {[%clk
0:02:48.1]} 19... Rxd7 {[%clk 0:02:45.1]} 20. Rd1 {[%clk 0:02:46.8]} 20... Rxd1+
{[%clk 0:02:31.8]} 21. Qxd1 {[%clk 0:02:46.6]} 21... Qd7 {[%clk 0:02:32.4]} 22.
Qxd7 {[%clk 0:02:07.3]} 22... Nxd7 {[%clk 0:02:33.3]} 23. f4 {[%clk 0:02:07.4]}
23... f6 {[%clk 0:02:27.9]} 24. exf6 {[%clk 0:02:05.4]} 24... gxf6 {[%clk
0:02:28.8]} 25. Kf2 {[%clk 0:02:05.4]} 25... Kf7 {[%clk 0:02:28.6]} 26. Ke3
{[%clk 0:02:05.2]} 26... e5 {[%clk 0:02:26.4]} 27. g3 {[%clk 0:01:51.6]} 27...
Ke6 {[%clk 0:02:25.9]} 28. Bb2 {[%clk 0:01:48.7]} 28... h5 {[%clk 0:02:26]} 29.
h3 {[%clk 0:01:45.7]} 29... Kf5 {[%clk 0:02:24.7]} 30. b4 {[%clk 0:01:37.7]}
30... exf4+ {[%clk 0:02:04.4]} 31. gxf4 {[%clk 0:01:36.8]} 31... Nf8 {[%clk
0:02:04.5]} 32. Kf3 {[%clk 0:01:00]} 32... Ne6 {[%clk 0:02:03.9]} 33. Bc1 {[%clk
0:00:59.1]} 33... Nd4+ {[%clk 0:02:04.5]} 34. Kf2 {[%clk 0:00:40.1]} 34... Ke4
{[%clk 0:02:03.9]} 35. c5 {[%clk 0:00:32.4]} 35... bxc5 {[%clk 0:02:01.1]} 36.
bxc5 {[%clk 0:00:32.6]} 36... f5 {[%clk 0:02:02]} 37. Bb2 {[%clk 0:00:28.9]}
37... Ne6 {[%clk 0:02:00.4]} 38. Be5 {[%clk 0:00:25.6]} 38... c6 {[%clk
0:02:00.3]} 39. Kg3 {[%clk 0:00:24.4]} 39... Nxc5 {[%clk 0:01:59.8]} 40. Kh4
{[%clk 0:00:25.1]} 40... Nd3 {[%clk 0:01:59.5]} 41. Kxh5 {[%clk 0:00:25.6]}
41... Nxe5 {[%clk 0:01:55.6]} 42. fxe5 {[%clk 0:00:25.7]} 42... Kxe5 {[%clk
0:01:55]} 43. Kg6 {[%clk 0:00:19.4]} 43... f4 {[%clk 0:01:55.3]} 44. h4 {[%clk
0:00:20]} 44... f3 {[%clk 0:01:56]} 45. h5 {[%clk 0:00:20.7]} 45... f2 {[%clk
0:01:56.8]} 46. h6 {[%clk 0:00:21.4]} 46... f1=Q {[%clk 0:01:57.7]} 47. h7
{[%clk 0:00:21.9]} 47... Qf6+ {[%clk 0:01:58.6]} 0-1

[Event "Early-Titled-Tuesday-Blitz-September-05-2023"]
[Site "Chess.com"]
[Date "2023.09.05"]
[Round "1"]
[White "Actuary44"]
[Black "FabianoCaruana"]
[Result "0-1"]
[WhiteElo "2546"]
[BlackElo "3106"]
[TimeControl "180+1"]
[EndTime "8:05:46 PDT"]
[Termination "FabianoCaruana won by resignation"]

1. e4 {[%clk 0:03:00.9]} 1... g6 {[%clk 0:03:00.5]} 2. d4 {[%clk 0:03:00.6]}
2... Bg7 {[%clk 0:03:01.1]} 3. Nc3 {[%clk 0:03:01.3]} 3... c6 {[%clk 0:03:00.9]}
4. Be3 {[%clk 0:03:01.9]} 4... b5 {[%clk 0:02:59.1]} 5. Qd2 {[%clk 0:03:01.7]}
5... b4 {[%clk 0:02:56.8]} 6. Nd1 {[%clk 0:02:56.7]} 6... a5 {[%clk 0:02:53.1]}
7. h4 {[%clk 0:02:56.1]} 7... h5 {[%clk 0:02:52]} 8. g4 {[%clk 0:02:50.9]} 8...
hxg4 {[%clk 0:02:51.1]} 9. f3 {[%clk 0:02:49.5]} 9... gxf3 {[%clk 0:02:50.6]}
10. Nxf3 {[%clk 0:02:50.4]} 10... d6 {[%clk 0:02:47]} 11. Nf2 {[%clk 0:02:50.2]}
11... Nf6 {[%clk 0:02:45.6]} 12. O-O-O {[%clk 0:02:49.1]} 12... Nbd7 {[%clk
0:02:36]} 13. e5 {[%clk 0:02:41.6]} 13... Nd5 {[%clk 0:02:35]} 14. e6 {[%clk
0:02:34]} 14... fxe6 {[%clk 0:02:33.6]} 15. Bd3 {[%clk 0:02:29.2]} 15... Nf8
{[%clk 0:02:32.5]} 16. Rdg1 {[%clk 0:02:22]} 16... Ba6 {[%clk 0:02:23.5]} 17.
Bxg6+ {[%clk 0:02:15.3]} 17... Nxg6 {[%clk 0:02:23.6]} 18. Rxg6 {[%clk 0:02:16]}
18... Bf6 {[%clk 0:02:24.2]} 19. Rhg1 {[%clk 0:01:54.8]} 19... Kd7 {[%clk
0:02:18.6]} 20. Ne4 {[%clk 0:01:46.2]} 20... Kc7 {[%clk 0:01:32.8]} 21. Bg5
{[%clk 0:01:37.8]} 21... Kb6 {[%clk 0:01:26.3]} 22. Bxf6 {[%clk 0:01:15.9]}
22... exf6 {[%clk 0:01:25.3]} 23. c3 {[%clk 0:00:59.4]} 23... Rh7 {[%clk
0:01:10.5]} 24. cxb4 {[%clk 0:00:55.9]} 24... axb4 {[%clk 0:01:11.4]} 25. Kb1
{[%clk 0:00:52.9]} 25... Rha7 {[%clk 0:01:05]} 26. Rc1 {[%clk 0:00:50.3]} 26...
Bb5 {[%clk 0:01:03.7]} 27. b3 {[%clk 0:00:32.7]} 27... Rxa2 {[%clk 0:01:00.8]}
28. Qxa2 {[%clk 0:00:33.6]} 28... Rxa2 {[%clk 0:01:00.8]} 29. Kxa2 {[%clk
0:00:34.5]} 29... Qa8+ {[%clk 0:01:00.9]} 30. Kb1 {[%clk 0:00:32.2]} 30... Bd3+
{[%clk 0:01:00.2]} 0-1

[Event "Early-Titled-Tuesday-Blitz-September-05-2023"]
[Site "Chess.com"]
[Date "2023.09.05"]
[Round "1"]
[White "alturas_pacificas"]
[Black "play1ngtheangel"]
[Result "0-1"]
[WhiteElo "2378"]
[BlackElo "2677"]
[TimeControl "180+1"]
[EndTime "8:05:46 PDT"]
[Termination "play1ngtheangel won by checkmate"]

1. d4 {[%clk 0:03:00.9]} 1... Nf6 {[%clk 0:02:59.7]} 2. Bf4 {[%clk 0:03:00.8]}
2... g6 {[%clk 0:02:59.8]} 3. e3 {[%clk 0:03:01.5]} 3... Bg7 {[%clk 0:02:59.5]}
4. Be2 {[%clk 0:03:02.2]} 4... O-O {[%clk 0:02:59.5]} 5. Nf3 {[%clk 0:03:02.9]}
5... d6 {[%clk 0:02:59.9]} 6. O-O {[%clk 0:03:03.5]} 6... Nbd7 {[%clk
0:03:00.7]} 7. h3 {[%clk 0:03:04]} 7... c5 {[%clk 0:03:01.4]} 8. c3 {[%clk
0:03:04.1]} 8... b6 {[%clk 0:03:02.1]} 9. Nbd2 {[%clk 0:03:04.1]} 9... Bb7
{[%clk 0:03:02.8]} 10. Bh2 {[%clk 0:03:04.6]} 10... Re8 {[%clk 0:03:02.9]} 11.
a4 {[%clk 0:02:56.1]} 11... Qc7 {[%clk 0:02:58.6]} 12. Nc4 {[%clk 0:02:54.4]}
12... a6 {[%clk 0:02:55.5]} 13. Qb3 {[%clk 0:02:49.7]} 13... Bd5 {[%clk
0:02:52.5]} 14. Rfc1 {[%clk 0:02:49.9]} 14... Reb8 {[%clk 0:02:46.6]} 15. Qd1
{[%clk 0:02:46.6]} 15... b5 {[%clk 0:02:46.7]} 16. axb5 {[%clk 0:02:42.7]} 16...
axb5 {[%clk 0:02:46.7]} 17. Na3 {[%clk 0:02:26.9]} 17... Bc6 {[%clk 0:02:44.1]}
18. Nxb5 {[%clk 0:02:14.3]} 18... Qb6 {[%clk 0:02:40.5]} 19. c4 {[%clk
0:02:04.5]} 19... Ne4 {[%clk 0:02:37.2]} 20. Rxa8 {[%clk 0:01:56.7]} 20... Rxa8
{[%clk 0:02:37.4]} 21. Ra1 {[%clk 0:01:57.5]} 21... Rxa1 {[%clk 0:02:35.2]} 22.
Qxa1 {[%clk 0:01:57.6]} 22... Bxb5 {[%clk 0:02:35.5]} 23. cxb5 {[%clk
0:01:58.5]} 23... cxd4 {[%clk 0:02:35.6]} 24. Qa8+ {[%clk 0:01:55.5]} 24... Qb8
{[%clk 0:02:19.6]} 25. Qxe4 {[%clk 0:01:56.4]} 25... Nc5 {[%clk 0:02:18.7]} 26.
Qc2 {[%clk 0:01:38.5]} 26... dxe3 {[%clk 0:02:18.8]} 27. fxe3 {[%clk 0:01:38.4]}
27... Qa7 {[%clk 0:02:19.7]} 28. Nd4 {[%clk 0:01:08.5]} 28... Ne6 {[%clk
0:02:10.9]} 29. Qc8+ {[%clk 0:00:47.4]} 29... Bf8 {[%clk 0:02:10.7]} 30. Nxe6
{[%clk 0:00:24.4]} 30... Qxe3+ {[%clk 0:02:10.5]} 31. Kf1 {[%clk 0:00:24.9]}
31... fxe6 {[%clk 0:02:10.6]} 32. Bg1 {[%clk 0:00:21.7]} 32... Qe4 {[%clk
0:01:56.6]} 33. b6 {[%clk 0:00:20.5]} 33... Qb1+ {[%clk 0:01:56.1]} 34. Kf2
{[%clk 0:00:18.9]} 34... Kf7 {[%clk 0:01:51.9]} 35. b7 {[%clk 0:00:17.2]} 35...
Bg7 {[%clk 0:01:52.5]} 36. b8=Q {[%clk 0:00:05.6]} 36... Bd4+ {[%clk 0:01:52.8]}
37. Kf3 {[%clk 0:00:05.3]} 37... Qf5+ {[%clk 0:01:48.8]} 38. Kg3 {[%clk
0:00:04]} 38... Be5+ {[%clk 0:01:49.3]} 39. Kh4 {[%clk 0:00:02.8]} 39... Qf6+
{[%clk 0:01:49.2]} 40. Kg4 {[%clk 0:00:02.4]} 40... Qf4# {[%clk 0:01:49.8]} 0-1

[Event "Early-Titled-Tuesday-Blitz-September-05-2023"]
[Site "Chess.com"]
[Date "2023.09.05"]
[Round "1"]
[White "GamayevOleg"]
[Black "FuenfgegenWilly"]
[Result "1-0"]
[WhiteElo "2624"]
[BlackElo "2303"]
[TimeControl "180+1"]
[EndTime "8:05:46 PDT"]
[Termination "GamayevOleg won by resignation"]

1. e4 {[%clk 0:02:57]} 1... e5 {[%clk 0:02:59.2]} 2. Nf3 {[%clk 0:02:56.9]} 2...
Nc6 {[%clk 0:02:59.7]} 3. Bb5 {[%clk 0:02:57]} 3... a6 {[%clk 0:02:59.6]} 4. Ba4
{[%clk 0:02:56.9]} 4... d6 {[%clk 0:03:00.2]} 5. O-O {[%clk 0:02:56.4]} 5... Bd7
{[%clk 0:03:00.7]} 6. c3 {[%clk 0:02:56.2]} 6... Nf6 {[%clk 0:03:00.9]} 7. Re1
{[%clk 0:02:54.7]} 7... Be7 {[%clk 0:03:01.1]} 8. d4 {[%clk 0:02:54.9]} 8... O-O
{[%clk 0:03:01.4]} 9. Bc2 {[%clk 0:02:54.4]} 9... h6 {[%clk 0:02:57.1]} 10. h3
{[%clk 0:02:53.2]} 10... Re8 {[%clk 0:02:57.4]} 11. Nbd2 {[%clk 0:02:53.8]}
11... Bf8 {[%clk 0:02:56.3]} 12. Nf1 {[%clk 0:02:53.8]} 12... g6 {[%clk
0:02:55.4]} 13. d5 {[%clk 0:02:51.7]} 13... Ne7 {[%clk 0:02:52.5]} 14. g4 {[%clk
0:02:52.2]} 14... Bg7 {[%clk 0:02:52.3]} 15. Ng3 {[%clk 0:02:52.7]} 15... b5
{[%clk 0:02:36.1]} 16. Kh1 {[%clk 0:02:49.6]} 16... Nc8 {[%clk 0:02:26.9]} 17.
Be3 {[%clk 0:02:49.1]} 17... Nb6 {[%clk 0:02:25.5]} 18. b3 {[%clk 0:02:47.8]}
18... c6 {[%clk 0:02:19.4]} 19. Qd2 {[%clk 0:02:47.9]} 19... Rc8 {[%clk
0:02:12.2]} 20. Bxh6 {[%clk 0:02:47.1]} 20... cxd5 {[%clk 0:02:10.4]} 21. Bxg7
{[%clk 0:02:46]} 21... Kxg7 {[%clk 0:02:10]} 22. Nf5+ {[%clk 0:02:45.5]} 22...
Bxf5 {[%clk 0:02:01.7]} 23. gxf5 {[%clk 0:02:45.6]} 23... Nxe4 {[%clk
0:01:58.3]} 24. Bxe4 {[%clk 0:02:42.8]} 24... dxe4 {[%clk 0:01:58.5]} 25. Rxe4
{[%clk 0:02:43.4]} 25... Qf6 {[%clk 0:01:51.1]} 26. Rg4 {[%clk 0:02:19.9]} 26...
Qxf5 {[%clk 0:01:48.8]} 27. Nh4 {[%clk 0:02:19.7]} 27... Qh5 {[%clk 0:01:32.7]}
28. Rag1 {[%clk 0:02:16.7]} 28... Re6 {[%clk 0:01:32.3]} 29. Qd3 {[%clk
0:02:14.4]} 29... Rf6 {[%clk 0:01:28.1]} 30. Qg3 {[%clk 0:02:11.7]} 30... Rh8
{[%clk 0:01:23.7]} 31. Kh2 {[%clk 0:02:11.9]} 31... Kf8 {[%clk 0:01:18.2]} 32.
Ng2 {[%clk 0:02:04.3]} 32... Nd5 {[%clk 0:01:16.1]} 33. Rh4 {[%clk 0:02:03.4]}
33... Ne7 {[%clk 0:00:58.9]} 34. Rxh5 {[%clk 0:02:02.5]} 34... Rxh5 {[%clk
0:00:59.8]} 35. Ne3 {[%clk 0:02:01.3]} 35... Rf4 {[%clk 0:00:57.8]} 36. Rd1
{[%clk 0:01:58.3]} 36... d5 {[%clk 0:00:54.1]} 37. Nxd5 {[%clk 0:01:56.6]} 37...
Nf5 {[%clk 0:00:54.6]} 38. Qg2 {[%clk 0:01:49.8]} 38... Rfh4 {[%clk 0:00:50.2]}
39. Nf6 {[%clk 0:01:45.8]} 39... Rh6 {[%clk 0:00:50.2]} 40. Nd7+ {[%clk
0:01:35.2]} 40... Kg7 {[%clk 0:00:48.4]} 41. Nxe5 {[%clk 0:01:36.1]} 41... Rh8
{[%clk 0:00:45.5]} 42. Ng4 {[%clk 0:01:36.3]} 42... Re8 {[%clk 0:00:44.4]} 43.
Rd3 {[%clk 0:01:34.9]} 43... Re2 {[%clk 0:00:43.4]} 44. Rf3 {[%clk 0:01:33.4]}
44... Nd6 {[%clk 0:00:42]} 45. Qg3 {[%clk 0:01:31.9]} 45... Nf5 {[%clk
0:00:38.5]} 46. Rxf5 {[%clk 0:01:31.9]} 46... gxf5 {[%clk 0:00:39.4]} 47. Qxh4
{[%clk 0:01:32.5]} 1-0

[Event "Early-Titled-Tuesday-Blitz-September-05-2023"]
[Site "Chess.com"]
[Date "2023.09.05"]
[Round "1"]
[White "hurricane7791"]
[Black "Yuruultei"]
[Result "1-0"]
[WhiteElo "2670"]
[BlackElo "2364"]
[TimeControl "180+1"]
[EndTime "8:05:51 PDT"]
[Termination "hurricane7791 won by checkmate"]

1. d4 {[%clk 0:02:13.8]} 1... Nf6 {[%clk 0:02:52.7]} 2. c4 {[%clk 0:02:10.7]}
2... g6 {[%clk 0:02:53.6]} 3. Nc3 {[%clk 0:02:10.2]} 3... Bg7 {[%clk 0:02:54.5]}
4. e4 {[%clk 0:02:10.6]} 4... d6 {[%clk 0:02:55.4]} 5. h3 {[%clk 0:02:11.1]}
5... O-O {[%clk 0:02:56.3]} 6. Be3 {[%clk 0:02:11.4]} 6... Nbd7 {[%clk
0:02:52.8]} 7. g4 {[%clk 0:02:09.8]} 7... c5 {[%clk 0:02:49.1]} 8. d5 {[%clk
0:02:08.8]} 8... b5 {[%clk 0:02:42.8]} 9. cxb5 {[%clk 0:02:04.9]} 9... a6 {[%clk
0:02:41.8]} 10. bxa6 {[%clk 0:02:03.9]} 10... Bxa6 {[%clk 0:02:40.3]} 11. Bxa6
{[%clk 0:02:04.5]} 11... Rxa6 {[%clk 0:02:40.5]} 12. Nf3 {[%clk 0:02:04.6]}
12... Nb6 {[%clk 0:02:36.2]} 13. Qe2 {[%clk 0:01:59.5]} 13... Qa8 {[%clk
0:02:34.1]} 14. O-O {[%clk 0:01:58]} 14... Rb8 {[%clk 0:02:30.4]} 15. Bg5 {[%clk
0:01:35.9]} 15... Na4 {[%clk 0:02:19.3]} 16. Bc1 {[%clk 0:01:07.3]} 16... Nd7
{[%clk 0:02:06]} 17. Nxa4 {[%clk 0:01:05.4]} 17... Rxa4 {[%clk 0:01:58.7]} 18.
a3 {[%clk 0:01:06]} 18... Qb7 {[%clk 0:01:51.3]} 19. Rd1 {[%clk 0:01:02.4]}
19... Bxb2 {[%clk 0:01:43.8]} 20. Rb1 {[%clk 0:00:58.2]} 20... Qb3 {[%clk
0:01:30.7]} 21. Rxb2 {[%clk 0:00:55.8]} 21... Qc3 {[%clk 0:01:30.6]} 22. Rxb8+
{[%clk 0:00:55.2]} 22... Nxb8 {[%clk 0:01:28.6]} 23. e5 {[%clk 0:00:54.7]} 23...
dxe5 {[%clk 0:01:25.6]} 24. Bb2 {[%clk 0:00:54.1]} 24... Qb3 {[%clk 0:01:24.5]}
25. Nxe5 {[%clk 0:00:50.3]} 25... c4 {[%clk 0:01:19]} 26. Nc6 {[%clk 0:00:42.4]}
26... Nxc6 {[%clk 0:01:16.8]} 27. dxc6 {[%clk 0:00:41.9]} 27... c3 {[%clk
0:01:11]} 28. Rd8+ {[%clk 0:00:33]} 28... Kg7 {[%clk 0:01:09.2]} 29. Qe5+ {[%clk
0:00:33.6]} 29... f6 {[%clk 0:01:09.8]} 30. Qxe7+ {[%clk 0:00:33.7]} 30... Kh6
{[%clk 0:01:10.2]} 31. Bc1+ {[%clk 0:00:32.2]} 31... g5 {[%clk 0:01:08]} 32.
Qxf6# {[%clk 0:00:25.1]} 1-0

[Event "Early-Titled-Tuesday-Blitz-September-05-2023"]
[Site "Chess.com"]
[Date "2023.09.05"]
[Round "1"]
[White "ferrufino64"]
[Black "ykam78"]
[Result "1-0"]
[WhiteElo "2146"]
[BlackElo "2541"]
[TimeControl "180+1"]
[EndTime "8:05:58 PDT"]
[Termination "ferrufino64 won on time"]

1. e4 {[%clk 0:02:59.4]} 1... e5 {[%clk 0:02:59.4]} 2. Nf3 {[%clk 0:02:59.2]}
2... Nc6 {[%clk 0:02:59.2]} 3. Bb5 {[%clk 0:02:59.4]} 3... a6 {[%clk 0:02:59.1]}
4. Ba4 {[%clk 0:02:59.6]} 4... Nf6 {[%clk 0:02:59.2]} 5. O-O {[%clk 0:02:59.5]}
5... b5 {[%clk 0:02:59.8]} 6. Bb3 {[%clk 0:02:59.6]} 6... Be7 {[%clk 0:03:00.7]}
7. Re1 {[%clk 0:02:59.5]} 7... O-O {[%clk 0:02:59.5]} 8. c3 {[%clk 0:02:56.9]}
8... d5 {[%clk 0:02:59.3]} 9. exd5 {[%clk 0:02:54.7]} 9... Nxd5 {[%clk
0:03:00.2]} 10. h3 {[%clk 0:02:49.2]} 10... Bb7 {[%clk 0:02:56.4]} 11. d3 {[%clk
0:02:45]} 11... Nf4 {[%clk 0:02:21]} 12. Bxf4 {[%clk 0:02:39.6]} 12... exf4
{[%clk 0:02:21.9]} 13. d4 {[%clk 0:02:37.6]} 13... Bd6 {[%clk 0:02:18.7]} 14.
Nbd2 {[%clk 0:02:37.2]} 14... Ne7 {[%clk 0:02:06.2]} 15. Bc2 {[%clk 0:02:30.6]}
15... Ng6 {[%clk 0:02:04]} 16. Be4 {[%clk 0:02:30.1]} 16... c6 {[%clk
0:01:29.7]} 17. a4 {[%clk 0:02:22]} 17... Qd7 {[%clk 0:01:24]} 18. Nb3 {[%clk
0:02:07.3]} 18... Qc7 {[%clk 0:01:18.4]} 19. Qd2 {[%clk 0:01:39.1]} 19... Rfe8
{[%clk 0:01:02.9]} 20. axb5 {[%clk 0:01:36.8]} 20... axb5 {[%clk 0:00:58.7]} 21.
Qc1 {[%clk 0:01:22.8]} 21... Rxa1 {[%clk 0:00:42.5]} 22. Qxa1 {[%clk 0:01:23.7]}
22... Ra8 {[%clk 0:00:16.2]} 23. Qb1 {[%clk 0:01:21.9]} 23... Bf8 {[%clk
0:00:05.3]} 24. h4 {[%clk 0:01:21.4]} 24... Qd6 {[%clk 0:00:02.5]} 25. h5 {[%clk
0:01:21.3]} 25... Ne7 {[%clk 0:00:01.6]} 26. Bxh7+ {[%clk 0:01:21.8]} 26... Kh8
{[%clk 0:00:02.4]} 27. Ne5 {[%clk 0:01:20.7]} 27... Qf6 {[%clk 0:00:01.3]} 28.
Nc5 {[%clk 0:01:13.4]} 28... Bc8 {[%clk 0:00:01.4]} 29. Be4 {[%clk 0:01:12.6]}
1-0

[Event "Early-Titled-Tuesday-Blitz-September-05-2023"]
[Site "Chess.com"]
[Date "2023.09.05"]
[Round "1"]
[White "bescmelasti"]
[Black "KejJaj"]
[Result "1-0"]
[WhiteElo "2590"]
[BlackElo "2209"]
[TimeControl "180+1"]
[EndTime "8:06:00 PDT"]
[Termination "bescmelasti won by checkmate"]

1. e4 {[%clk 0:03:00.5]} 1... c5 {[%clk 0:02:59.9]} 2. Nf3 {[%clk 0:03:00.8]}
2... d6 {[%clk 0:03:00.5]} 3. d4 {[%clk 0:03:00.6]} 3... cxd4 {[%clk 0:03:01.4]}
4. Nxd4 {[%clk 0:03:00.7]} 4... Nf6 {[%clk 0:03:02]} 5. Nc3 {[%clk 0:03:01.4]}
5... g6 {[%clk 0:03:02.5]} 6. f3 {[%clk 0:03:01]} 6... Bg7 {[%clk 0:03:02.6]} 7.
Be3 {[%clk 0:03:01.7]} 7... Nc6 {[%clk 0:03:02]} 8. Qd2 {[%clk 0:03:02.3]} 8...
O-O {[%clk 0:02:58.8]} 9. O-O-O {[%clk 0:03:02.6]} 9... d5 {[%clk 0:02:58.9]}
10. exd5 {[%clk 0:03:02.7]} 10... Nxd5 {[%clk 0:02:58.3]} 11. Nxc6 {[%clk
0:03:03.6]} 11... bxc6 {[%clk 0:02:58.1]} 12. Bd4 {[%clk 0:03:04.5]} 12... Bxd4
{[%clk 0:02:56.2]} 13. Qxd4 {[%clk 0:03:05.4]} 13... Qb6 {[%clk 0:02:56.2]} 14.
Na4 {[%clk 0:03:06.1]} 14... Qc7 {[%clk 0:02:55.7]} 15. h4 {[%clk 0:02:57.2]}
15... Be6 {[%clk 0:02:18.9]} 16. Nc5 {[%clk 0:02:53.5]} 16... Nf4 {[%clk
0:02:17.5]} 17. Na6 {[%clk 0:02:19.7]} 17... Qa5 {[%clk 0:01:36.1]} 18. Qxf4
{[%clk 0:02:18]} 18... Qxa2 {[%clk 0:01:35.6]} 19. Nc5 {[%clk 0:02:07.2]} 19...
Qa1+ {[%clk 0:01:29.2]} 20. Kd2 {[%clk 0:02:07.4]} 20... Rfd8+ {[%clk
0:01:27.5]} 21. Bd3 {[%clk 0:02:07.1]} 21... Qa5+ {[%clk 0:01:21.4]} 22. b4
{[%clk 0:02:07]} 22... Qb6 {[%clk 0:01:00.7]} 23. h5 {[%clk 0:02:07.2]} 23...
Bf5 {[%clk 0:00:49.1]} 24. hxg6 {[%clk 0:02:04.2]} 24... Bxg6 {[%clk 0:00:44]}
25. Ke2 {[%clk 0:02:01.1]} 25... Rxd3 {[%clk 0:00:27.1]} 26. Rxd3 {[%clk
0:02:02]} 26... a5 {[%clk 0:00:21.6]} 27. Ra1 {[%clk 0:01:45.7]} 27... a4 {[%clk
0:00:15.4]} 28. Rxa4 {[%clk 0:01:43.1]} 28... Rxa4 {[%clk 0:00:12.5]} 29. Nxa4
{[%clk 0:01:44]} 29... Qb5 {[%clk 0:00:12.8]} 30. Nc5 {[%clk 0:01:43.6]} 30...
Kg7 {[%clk 0:00:08.7]} 31. Qe5+ {[%clk 0:01:43.3]} 31... Kh6 {[%clk 0:00:07.5]}
32. Qxe7 {[%clk 0:01:38.8]} 32... Qxb4 {[%clk 0:00:06.9]} 33. Qf8+ {[%clk
0:01:32.5]} 33... Kh5 {[%clk 0:00:05.9]} 34. g4+ {[%clk 0:01:31.6]} 34... Kh4
{[%clk 0:00:05.5]} 35. Qh6+ {[%clk 0:01:22.4]} 35... Kg3 {[%clk 0:00:06.1]} 36.
f4+ {[%clk 0:01:22.7]} 36... Kxg4 {[%clk 0:00:05.4]} 37. Qg5# {[%clk 0:01:22.9]}
1-0

[Event "Early-Titled-Tuesday-Blitz-September-05-2023"]
[Site "Chess.com"]
[Date "2023.09.05"]
[Round "1"]
[White "chessculator16"]
[Black "Agoking701"]
[Result "1-0"]
[WhiteElo "2205"]
[BlackElo "2565"]
[TimeControl "180+1"]
[EndTime "8:06:01 PDT"]
[Termination "chessculator16 won on time"]

1. d4 {[%clk 0:03:00.9]} 1... d5 {[%clk 0:02:56.8]} 2. Nf3 {[%clk 0:02:58.4]}
2... Bf5 {[%clk 0:02:55.1]} 3. c4 {[%clk 0:02:54.4]} 3... e6 {[%clk 0:02:55.6]}
4. Nc3 {[%clk 0:02:52.8]} 4... Nf6 {[%clk 0:02:52]} 5. cxd5 {[%clk 0:02:52.4]}
5... exd5 {[%clk 0:02:50.1]} 6. Qb3 {[%clk 0:02:52.2]} 6... Nc6 {[%clk
0:02:45.2]} 7. a3 {[%clk 0:02:41.5]} 7... Na5 {[%clk 0:02:39.1]} 8. Qa4+ {[%clk
0:02:40.9]} 8... c6 {[%clk 0:02:38]} 9. Bg5 {[%clk 0:02:40.4]} 9... Nc4 {[%clk
0:02:32.5]} 10. e4 {[%clk 0:02:27.1]} 10... Nb6 {[%clk 0:02:19.9]} 11. Qc2
{[%clk 0:02:21.9]} 11... dxe4 {[%clk 0:02:19.7]} 12. Bxf6 {[%clk 0:02:19.2]}
12... Qxf6 {[%clk 0:02:18.5]} 13. Nxe4 {[%clk 0:02:18]} 13... Qe6 {[%clk
0:02:14.9]} 14. Ng5 {[%clk 0:02:10.8]} 14... Qe7 {[%clk 0:02:12.4]} 15. O-O-O
{[%clk 0:02:08.5]} 15... h6 {[%clk 0:01:40.9]} 16. Re1 {[%clk 0:02:07]} 16...
O-O-O {[%clk 0:01:17.9]} 17. Nd6+ {[%clk 0:02:06]} 17... Qxd6 {[%clk 0:00:52.4]}
18. Qxf5+ {[%clk 0:02:04.9]} 18... Qd7 {[%clk 0:00:52.3]} 19. Qxd7+ {[%clk
0:02:01.5]} 19... Rxd7 {[%clk 0:00:53.2]} 20. Nf3 {[%clk 0:01:58.2]} 20... Be7
{[%clk 0:00:50.3]} 21. g3 {[%clk 0:01:57.7]} 21... Kd8 {[%clk 0:00:26.4]} 22.
Ne5 {[%clk 0:01:56.4]} 22... Bf6 {[%clk 0:00:24.3]} 23. Nxd7 {[%clk 0:01:55.3]}
23... Kxd7 {[%clk 0:00:24.4]} 24. Bh3+ {[%clk 0:01:54.5]} 24... Kd6 {[%clk
0:00:24]} 25. Rd1 {[%clk 0:01:52.7]} 25... Nd5 {[%clk 0:00:20.7]} 26. Rhe1
{[%clk 0:01:52]} 26... Rd8 {[%clk 0:00:21]} 27. f4 {[%clk 0:01:50.9]} 27... g6
{[%clk 0:00:21.4]} 28. Bg2 {[%clk 0:01:50.6]} 28... Nc7 {[%clk 0:00:20.3]} 29.
Kc2 {[%clk 0:01:50.1]} 29... Ne6 {[%clk 0:00:20.3]} 30. d5 {[%clk 0:01:49.7]}
30... Nd4+ {[%clk 0:00:21]} 31. Kb1 {[%clk 0:01:47]} 31... cxd5 {[%clk
0:00:18.4]} 32. g4 {[%clk 0:01:47.1]} 32... Rc8 {[%clk 0:00:15.4]} 33. g5 {[%clk
0:01:45.8]} 33... hxg5 {[%clk 0:00:16.3]} 34. fxg5 {[%clk 0:01:45.9]} 34... Be5
{[%clk 0:00:16.2]} 35. h4 {[%clk 0:01:44.5]} 35... Rh8 {[%clk 0:00:16.7]} 36.
Rf1 {[%clk 0:01:42.9]} 1-0